[Event "Romanian Rapid Open 2022"]
[Site "Sebes"]
[Date "2022.12.02"]
[Round "4.24"]
[White "Ciolacu, Alessia-Mihaela"]
[Black "Dobre, Ana-Margareta-Alexan"]
[Result "1-0"]
[ECO "D37"]
[WhiteElo "2097"]
[BlackElo "1857"]
[Annotator "TA"]
[PlyCount "91"]
[EventDate "2022.12.02"]
[EventType "rapid"]
[EventCountry "ROU"]
[SourceTitle "playchess.com"]
[Source "ChessBase"]
[SourceQuality "1"]
[TimeControl "600+5"]

{[%evp 12,91,24,18,35,41,41,37,38,37,64,45,49,39,39,50,236,144,339,281,279,269,321,301,290,167,171,187,198,200,206,196,401,385,469,443,548,552,542,549,527,538,524,530,697,475,548,443,485,477,639,638,630,624,722,714,1298,1291,1286,1277,1463,1672,1446,1463,1392,920,889,877,1232,1214,1271,1271,1081,744,1342,1225,1497,1467,29990,29991,29998,29999]} 1. d4 {[%emt 0:00:03]} Nf6 {[%emt 0:00:01]} 2. c4 {[%emt 0:00:02]} e6 {[%emt 0:00:01]} 3. Nc3 {[%emt 0:00:06]} d5 {[%emt 0:00:01]} 4. Nf3 {[%emt 0:00:13]} Be7 {[%emt 0:00:01]} 5. Bf4 {[%emt 0:00:04]} O-O {[%emt 0:00:10]} 6. Rc1 {[%emt 0:00:10]} c6 {[%emt 0:01:05]} 7. e3 {[%emt 0:00:09]} b6 {[%emt 0:00:07] D37: Queen's Gambit Declined: 5 Bf4.} 8. cxd5 {[%emt 0:00:20]} cxd5 {[%emt 0:00:54]} 9. Bd3 {[%emt 0:01:11]} Bb7 {[%emt 0:00:46] White is slightly better.} 10. O-O {[%emt 0:00:18] [#]} Ne4 $146 {[%emt 0:00:35]} ({Predecessor:} 10... Nh5 11. Be5 Nd7 12. Ne2 Nxe5 13. dxe5 g6 14. Ned4 Ng7 15. Qa4 f6 16. Rc2 fxe5 17. Nxe5 {1-0 (82) Vo,T (2197)-Nguyen,T (1936) Da Lat 2014}) 11. Nb5 {[%emt 0:00:20]} Nc6 {[%emt 0:00:28]} 12. Ne5 {[%emt 0:01:08]} Nxe5 {[%emt 0:01:21]} 13. Bxe5 {[%emt 0:00:04]} Nd6 $2 {[%emt 0:01:02]} ({Black should try} 13... a6 $14 14. Bc7 (14. Qg4 g6 $14) 14... Qe8 15. Bxe4 Qxb5) 14. Qh5 {[%emt 0:02:59][%csl Gd3][%cal Rh5h7] [#]} f5 $2 {[%emt 0:00:16] This move loses the game for Black.} (14... Nf5 $16 {was worth a try.} 15. Bxf5 exf5) 15. Nc7 {[%emt 0:00:07]} Qd7 {[%emt 0:00:59]} 16. Nxa8 {[%emt 0:00:08]} Bxa8 {[%emt 0:00:02]} 17. Rc2 {[%emt 0:00:09]} Nc4 {[%emt 0:00:18]} 18. b3 {[%emt 0:00:22]} ({Much less strong is} 18. Bxc4 $6 dxc4 19. b3 (19. Rxc4 $2 {loses.} Qd5 $19) 19... b5 20. bxc4 bxc4 $18) (18. Bf4 $142) 18... Nxe5 $18 {[%emt 0:00:02]} 19. dxe5 $40 {[%emt 0:00:01][%mdl 128] White attacks with force.} d4 {[%emt 0:00:22]} 20. exd4 {[%emt 0:00:48]} Qxd4 {[%emt 0:00:14]} 21. Qe2 {[%emt 0:00:05]} ({Don't take} 21. Rc7 $6 Bc5 $16) 21... f4 $2 {[%emt 0:00:23]} (21... Qd5 {was called for.} 22. f3 Qd7) 22. Rc4 {[%emt 0:00:35]} Qd5 {[%emt 0:00:14][%csl Ga8][%cal Rd5g2]} 23. Be4 {[%emt 0:00:04][%cal Bd3e4,Be4d5,Bd5e6][%mdl 32]} f3 {[%emt 0:01:57]} 24. Bxd5 {[%emt 0:00:41]} fxe2 {[%emt 0:00:02]} 25. Bxe6+ {[%emt 0:00:03]} Kh8 {[%emt 0:00:00][%cal Oe7c5] Threatens to win with ...Bc5!} 26. Re1 {[%emt 0:00:03]} Bc5 {[%emt 0:00:14]} 27. Rxe2 {[%emt 0:00:06]} Bb7 {[%emt 0:00:09]} 28. Rc1 {[%emt 0:00:21]} Rd8 {[%emt 0:00:07]} 29. Bc4 {[%emt 0:00:07]} Ba3 {[%emt 0:00:10]} 30. Rb1 {[%emt 0:00:11]} Rd4 {[%emt 0:00:07]} 31. e6 {[%emt 0:00:08]} Be7 {[%emt 0:00:01]} 32. Ree1 {[%emt 0:00:08]} Rg4 {[%emt 0:00:06]} 33. g3 {[%emt 0:00:02]} h5 {[%emt 0:00:02]} 34. Rbd1 {[%emt 0:00:03] And now Rd7 would win.} Bc6 {[%emt 0:00:12] [#] Inhibits Rd7.} 35. Rd7 $1 {[%emt 0:00:15]} Bc5 {[%emt 0:00:13]} (35... Bb4 36. Re5) 36. Rd8+ {[%emt 0:00:09]} Kh7 {[%emt 0:00:03]} 37. e7 {[%emt 0:00:07]} h4 {[%emt 0:00:10]} 38. e8=Q {[%emt 0:00:06]} Bxe8 {[%emt 0:00:03]} 39. Rexe8 {[%emt 0:00:06] Bd3+ is the strong threat.} hxg3 {[%emt 0:00:04]} 40. hxg3 {[%emt 0:00:03] Black must now prevent Bd3+.} Rxg3+ {[%emt 0:00:01]} 41. Kf1 {[%emt 0:00:01]} Rf3 {[%emt 0:00:08]} 42. Re2 {[%emt 0:00:43]} a5 {[%emt 0:00:11]} 43. Kg2 {[%emt 0:00:03]} Rf4 {[%emt 0:00:04]} 44. Bd3+ {[%emt 0:00:03]} Kh6 {[%emt 0:00:01]} 45. Re6+ {[%emt 0:00:13]} Kh5 {[%emt 0:00:06]} 46. Rh8+ {[%emt 0:00:03] Weighted Error Value: White=0.34/Black=0.64} 1-0

[Event "Romanian Rapid Open 2022"]
[Site "Sebes"]
[Date "2022.12.02"]
[Round "4.25"]
[White "Cazan, Mircea-Andrei"]
[Black "Zubcu, Vlad-George"]
[Result "0-1"]
[ECO "A07"]
[WhiteElo "1898"]
[BlackElo "2135"]
[Annotator "TA"]
[PlyCount "72"]
[EventDate "2022.12.02"]
[EventType "rapid"]
[EventCountry "ROU"]
[SourceTitle "playchess.com"]
[Source "ChessBase"]
[SourceQuality "1"]
[TimeControl "600+5"]

{[%evp 9,72,0,32,8,8,0,0,0,0,-13,0,0,0,-62,-38,-30,-30,-41,-31,-22,0,-57,-49,-95,-98,-166,-168,-179,-130,-168,-117,-239,-224,-407,-375,-477,-454,-498,-143,-151,-133,-132,-147,-137,-135,-121,-126,-141,-145,-134,-132,-129,-138,-190,-185,-225,-24,-31,-40,-279,-268,-368,-365,-5606,-629]} 1. g3 {[%emt 0:00:08]} d5 {[%emt 0:00:02]} 2. Bg2 {[%emt 0:00:05]} Nf6 {[%emt 0:00:01]} 3. Nf3 {[%emt 0:00:04]} Bg4 {[%emt 0:00:05]} 4. h3 {[%emt 0:00:03]} Bxf3 {[%emt 0:00:01]} 5. Bxf3 {[%emt 0:00:02]} c6 {[%emt 0:00:02]} 6. d3 {[%emt 0:00:16] A07: Réti Opening: New York and Capablanca Systems.} Nbd7 {[%emt 0:00:02]} 7. Nc3 {[%emt 0:00:07]} e5 {[%emt 0:00:03]} 8. e4 {[%emt 0:00:08][%cal Re4d5] The position is equal.} dxe4 {[%emt 0:00:35] [#]} 9. dxe4 $146 {[%emt 0:00:02]} ({Predecessor:} 9. Nxe4 Nxe4 10. Bxe4 Bc5 11. Qg4 g6 12. O-O f5 13. Bxf5 gxf5 14. Qh5+ Ke7 15. Qxf5 {1-0 (25) Cloarec,A (1859)-Gadarinian,C (1880) Rennes 2007}) 9... Bb4 {[%emt 0:00:16]} 10. O-O {[%emt 0:00:15]} O-O {[%emt 0:00:05]} 11. a3 {[%emt 0:00:08]} (11. Nb1 $11) 11... Bxc3 $15 {[%emt 0:00:18]} 12. bxc3 {[%emt 0:00:02]} Qa5 {[%emt 0:00:10]} 13. Bd2 {[%emt 0:01:32]} Rad8 {[%emt 0:00:14]} 14. Qe2 {[%emt 0:00:13]} h6 {[%emt 0:00:03]} 15. Bg2 {[%emt 0:00:12]} (15. c4 $11 Qc7 16. Be3) 15... Nc5 {[%emt 0:00:17]} 16. Rfd1 {[%emt 0:00:21]} (16. Rfb1 $15) 16... Qa4 $17 {[%emt 0:00:04][%csl LRc2,LRe4] Black has more active pieces.} 17. f3 {[%emt 0:02:12]} (17. c4 $17) 17... Qxc2 $19 {[%emt 0:00:08]} 18. Rac1 {[%emt 0:00:06]} Qa4 {[%emt 0:00:27]} ({Better is} 18... Qa2 $19 {Threatens to win with ...Nb3.} 19. Ra1 Qc2) 19. Be3 {[%emt 0:00:41]} Ne6 {[%emt 0:00:57]} ({Black should try} 19... Qxa3 $19 20. Bf1 Rxd1 21. Qxd1 a5) 20. Bf2 {[%emt 0:00:37]} (20. Ra1 $17 {was necessary.}) 20... Qxa3 {[%emt 0:00:48]} 21. f4 $2 {[%emt 0:00:25]} (21. Re1) 21... exf4 {[%emt 0:00:14]} 22. gxf4 {[%emt 0:00:01]} Nxf4 {[%emt 0:00:17]} 23. Qf3 {[%emt 0:00:21]} Nd3 {[%emt 0:00:55]} 24. Ra1 $17 {[%emt 0:00:39]} Qb2 {[%emt 0:00:05]} (24... Qxc3 25. Bf1 $15) 25. Bd4 {[%emt 0:00:42]} Rxd4 {[%emt 0:00:44]} 26. cxd4 Qxd4+ {[%emt 0:00:01]} 27. Kf1 {[%emt 0:00:27] [#]} Nxe4 $1 {[%emt 0:00:57][%mdl 512]} 28. Ra3 {[%emt 0:00:26]} Nec5 {[%emt 0:00:08] Strongly threatening ...Rd8.} ({Inferior is} 28... Qf2+ 29. Qxf2 Nexf2 30. Rb1 $17) 29. Raxd3 {[%emt 0:00:20]} Nxd3 {[%emt 0:00:02]} 30. Rxd3 {[%emt 0:00:02]} Qb6 {[%emt 0:00:43]} 31. Rd7 {[%emt 0:01:06]} (31. Rb3 $17 {keeps fighting.} Qc7 32. Qe4) 31... a5 $19 {[%emt 0:00:16]} 32. Qd3 {[%emt 0:00:25] [#]} Re8 $2 {[%emt 0:00:50]} (32... a4 $1 $19 {[%cal Ra4a3] ...a3! is the strong threat.} 33. Be4 Qb2) 33. Qf5 $11 {[%emt 0:00:12]} Qb3 {[%emt 0:00:25]} 34. Be4 $2 {[%emt 0:00:15]} (34. Qxa5 $15 b5 35. Rd8 Qc4+ 36. Kg1 Qc1+ 37. Kh2 Qf4+ 38. Kg1 (38. Kh1 Rxd8 39. Qxd8+ Kh7 $17) 38... Qe3+ 39. Kf1) 34... g6 $19 {[%emt 0:00:23]} 35. Qg4 {[%emt 0:00:01][%cal Oe4g6]} Qc4+ {[%emt 0:00:17]} 36. Kf2 $2 {[%emt 0:00:14]} (36. Bd3 Qc1+ 37. Kg2 Qd2+ 38. Kg1) 36... Qxe4 {[%emt 0:00:06] Weighted Error Value: White=0.58/Black=0.36} (36... Rxe4 $142 37. Qd1 Qc5+ 38. Kg3 Qe5+ 39. Kg2 Qg5+ 40. Kf2 Rf4+ 41. Ke2 Qg3 42. Rd8+ Kh7) 0-1

[Event "Romanian Rapid Open 2022"]
[Site "Sebes"]
[Date "2022.12.02"]
[Round "4.26"]
[White "Dragomirescu, Calin"]
[Black "Zaharie, Ioan"]
[Result "1-0"]
[ECO "E94"]
[WhiteElo "1971"]
[BlackElo "1704"]
[Annotator "TA"]
[PlyCount "43"]
[EventDate "2022.12.02"]
[EventType "rapid"]
[EventCountry "ROU"]
[SourceTitle "playchess.com"]
[Source "ChessBase"]
[SourceQuality "1"]
[TimeControl "600+5"]

{[%evp 18,43,76,68,117,101,107,105,256,258,252,241,260,270,263,193,270,279,284,269,325,208,317,310,355,354,643,639]} 1. d4 {[%emt 0:00:06]} Nf6 {[%emt 0:00:08]} 2. Nf3 {[%emt 0:00:02]} g6 {[%emt 0:00:03]} 3. c4 {[%emt 0:00:02]} Bg7 {[%emt 0:00:01]} 4. Nc3 {[%emt 0:00:01]} d6 {[%emt 0:00:02]} 5. e4 {[%emt 0:00:02]} Nbd7 {[%emt 0:00:02]} 6. Be2 {[%emt 0:00:02]} e5 {[%emt 0:00:04]} 7. O-O {[%emt 0:00:03]} O-O {[%emt 0:00:09]} 8. Be3 {[%emt 0:00:04]} c6 {[%emt 0:00:03]} 9. d5 {[%emt 0:00:07]} cxd5 {[%emt 0:00:10]} 10. cxd5 {[%emt 0:00:02]} Nb6 {[%emt 0:00:07] E94: King's Indian: Classical: 6 Be2 e5 7 0-0: Various Black 7th moves.} (10... Ne8 $14) 11. Nd2 {[%emt 0:00:09] White is more active.} Bd7 {[%emt 0:00:08]} 12. a4 {[%emt 0:00:05][%cal Ba2a4,Ba4a5][%mdl 32] [#]} Rc8 $146 {[%emt 0:00:08] [#]} (12... Nc8 $16 {was necessary.} 13. Qb3 Rb8) ({Predecessor:} 12... h5 13. a5 Nc8 14. f3 b6 15. b4 bxa5 16. bxa5 Rb8 17. Nc4 h4 18. Qd2 h3 {1-0 (50) Al Mutairi,H (1883)-Can,E (2600) Moscow 2019}) 13. a5 $18 {[%emt 0:00:12]} Na8 {[%emt 0:00:03]} 14. Bxa7 {[%emt 0:00:11]} Qe7 {[%emt 0:00:22]} 15. Be3 {[%emt 0:00:16]} Nc7 {[%emt 0:00:06]} 16. Na4 {[%emt 0:00:07]} Bxa4 {[%emt 0:00:10]} (16... Bb5 $142 17. Rc1 Bxe2 18. Qxe2 Na6) 17. Qxa4 {[%emt 0:00:08]} ({Don't take} 17. Rxa4 $6 Na6 18. Bxa6 bxa6 $18) 17... Ra8 {[%emt 0:00:06]} 18. b4 {[%emt 0:00:22]} Rfc8 {[%emt 0:00:19]} 19. f3 {[%emt 0:00:17]} Nd7 {[%emt 0:00:11]} (19... Ncxd5 {is a better defense.} 20. exd5 Nxd5) 20. Rfc1 {[%emt 0:00:12]} Bf8 {[%emt 0:00:25]} 21. Rc2 {[%emt 0:00:13]} Nb8 $2 {[%emt 0:00:23] [#]} (21... Ne8 22. Rxc8 Rxc8) 22. Rac1 {[%emt 0:00:08] Black did not feel at home in the position after the opening.   Weighted Error Value: White=0.22 (precise) /Black=0.74} 1-0

[Event "Romanian Rapid Open 2022"]
[Site "Sebes"]
[Date "2022.12.02"]
[Round "4.27"]
[White "Cordea, David"]
[Black "Stan, Luciana-Gabriela"]
[Result "0-1"]
[ECO "D02"]
[WhiteElo "2049"]
[BlackElo "1823"]
[Annotator "TA"]
[PlyCount "71"]
[EventDate "2022.12.02"]
[EventType "rapid"]
[EventCountry "ROU"]
[SourceTitle "playchess.com"]
[Source "ChessBase"]
[SourceQuality "1"]
[TimeControl "600+5"]

{[%evp 11,71,2,28,-29,29,-27,-24,-24,-16,-58,-54,-72,-80,-59,-65,-100,-104,-144,-143,-142,-132,-135,-120,-112,-117,-108,-113,-234,37,40,37,39,31,35,184,187,186,186,213,208,217,212,206,212,214,197,212,212,212,171,170,161,161,161,174,0,42,0,173,11,11,0]} 1. d4 {[%emt 0:00:04]} d5 {[%emt 0:00:01]} 2. Nf3 {[%emt 0:00:01]} Nf6 {[%emt 0:00:01]} 3. g3 {[%emt 0:00:02]} g6 {[%emt 0:00:02]} 4. Bg2 {[%emt 0:00:02]} Bg7 {[%emt 0:00:01]} 5. O-O {[%emt 0:00:03]} O-O {[%emt 0:00:02]} 6. c3 {[%emt 0:00:06]} c5 {[%emt 0:00:10]} 7. Nbd2 {[%emt 0:00:17] D02: 1 d4 d5 2 Nf3 sidelines, including 2...Nf6 3 g3 and 2...Nf6 3 Bf4.} (7. dxc5 $142 Ne4 8. Ng5) 7... Nc6 {[%emt 0:00:01] [#]} ({Black should play} 7... cxd4 8. cxd4 Bf5) 8. b3 $146 {[%emt 0:00:07]} (8. dxc5 $142 e5 9. b4) ({Predecessor:} 8. dxc5 e5 9. b4 e4 10. Nd4 Ng4 11. N2b3 h5 12. f3 Nge5 13. fxe4 dxe4 14. Bxe4 Bh3 {0-1 (54) Moussard,J (2651)-Dubov,D (2702) Chess.com INT 2022}) 8... a5 {[%emt 0:00:29]} 9. a4 {[%emt 0:01:08] Black has an edge.} cxd4 {[%emt 0:01:30]} 10. cxd4 {[%emt 0:00:09]} Bf5 {[%emt 0:00:04]} 11. Bb2 {[%emt 0:00:34]} Nb4 {[%emt 0:00:12] Black is more active.} 12. Rc1 {[%emt 0:02:00] Against Bc2} Rc8 {[%emt 0:01:14]} 13. Rc3 {[%emt 0:01:25]} Qb6 {[%emt 0:00:55]} 14. Ne5 {[%emt 0:02:15]} Rxc3 {[%emt 0:00:58]} ({Don't play} 14... Qxd4 $6 15. Rxc8 Qxb2 16. Rxf8+ Kxf8 17. Nef3 $11) 15. Bxc3 {[%emt 0:00:01]} Rc8 {[%emt 0:00:01] Prevents e3.} 16. Qa1 {[%emt 0:00:15]} Nc2 {[%emt 0:00:16]} 17. Qb2 {[%emt 0:00:12][%cal Oe2e4]} Qc7 {[%emt 0:00:13] Prevents e4.} 18. Nb1 {[%emt 0:00:07][%cal Og3g4]} Ne4 {[%emt 0:00:30][%cal Re4c3] Against g4} 19. Qxc2 {[%emt 0:00:39] [#]} (19. Be1 $17) 19... Nxc3 $2 {[%emt 0:00:03]} (19... Nxg3 $1 $19 20. e4 Nxe4 21. Bxe4 Bxe4) 20. Qxc3 $14 {[%emt 0:00:07]} Qxc3 {[%emt 0:01:04]} 21. Nxc3 {[%emt 0:00:01]} Rxc3 {[%emt 0:00:01]} 22. Bxd5 {[%emt 0:00:03]} b6 {[%emt 0:00:02]} (22... e6 $14 23. Bg2 g5) 23. Bxf7+ $18 {[%emt 0:00:19]} (23. Nxf7 $2 {is the wrong capture.} e6 24. Bg2 Kxf7 $19) 23... Kf8 {[%emt 0:00:01] [#] Hoping for ...Bxe5.} 24. Bc4 {[%emt 0:00:06]} Bh6 {[%emt 0:00:47]} 25. g4 {[%emt 0:00:12]} Bc8 {[%emt 0:00:38]} 26. e3 {[%emt 0:00:05]} Bg7 {[%emt 0:00:03]} 27. h3 {[%emt 0:00:11]} Bf6 {[%emt 0:00:51]} 28. Kg2 {[%emt 0:00:52]} Kg7 {[%emt 0:00:51]} 29. Kf3 {[%emt 0:00:21]} Bb7+ {[%emt 0:00:09]} 30. Ke2 {[%emt 0:00:07] Black must now prevent Kd2.} Bg2 {[%emt 0:00:19]} 31. Rd1 {[%emt 0:00:37] aiming for Kd2.} Rc2+ {[%emt 0:00:04]} 32. Rd2 {[%emt 0:00:02]} Rc1 {[%emt 0:00:17]} 33. Rd1 {[%emt 0:00:10]} (33. Nd3 $18 Rh1 34. Nf4 Bxh3 35. Kf3) 33... Rc2+ $14 {[%emt 0:00:21]} 34. Rd2 {[%emt 0:00:01]} (34. Ke1 $14) 34... Rc1 $1 $18 {[%emt 0:00:20]} 35. Nd7 $2 {[%emt 0:00:11]} (35. Nd3 $18 Rh1 36. Nf4 Bxh3 37. Kf3) 35... Bxh3 $11 {[%emt 0:00:05]} 36. Nxb6 {[%emt 0:00:13][%mdl 32768] Weighted Error Value: White=0.42/Black=0.28 (precise) . Loss on time!?} 0-1

[Event "Romanian Rapid Open 2022"]
[Site "Sebes"]
[Date "2022.12.02"]
[Round "4.29"]
[White "Dan, Cantemir-Dorian"]
[Black "Lup, Constantin-Ionel"]
[Result "1-0"]
[ECO "B27"]
[WhiteElo "2036"]
[BlackElo "1739"]
[Annotator "TA"]
[PlyCount "85"]
[EventDate "2022.12.02"]
[EventType "rapid"]
[EventCountry "ROU"]
[SourceTitle "playchess.com"]
[Source "ChessBase"]
[SourceQuality "1"]
[TimeControl "600+5"]

{[%evp 10,84,27,22,32,10,21,10,8,0,0,0,11,-22,-18,-21,0,0,0,0,0,-4,45,43,45,37,37,23,29,33,33,0,21,22,186,131,415,387,378,368,375,372,325,312,350,337,376,86,377,187,168,189,159,81,220,24,34,6,22,20,20,-5,150,150,493,462,480,134,6208,6137,29995,29996,29997,29998,29998,29999,29999]} 1. e4 {[%emt 0:00:03]} c5 {[%emt 0:00:05]} 2. Nf3 {[%emt 0:00:05]} g6 {[%emt 0:00:02]} 3. c3 {[%emt 0:00:05]} Bg7 {[%emt 0:00:03]} 4. d4 {[%emt 0:00:03]} cxd4 {[%emt 0:00:01]} 5. cxd4 {[%emt 0:00:01]} d5 {[%emt 0:00:04]} 6. e5 {[%emt 0:00:13]} a6 {[%emt 0:00:02] B27: Sicilian: 2 Nf3, unusual Black 2nd moves.} 7. Nc3 {[%emt 0:00:09]} Nc6 {[%emt 0:00:03]} 8. Be2 {[%emt 0:00:08]} Bg4 {[%emt 0:00:03] The position is equal.} 9. Be3 {[%emt 0:00:04]} e6 {[%emt 0:00:04]} 10. O-O {[%emt 0:00:28]} Nge7 {[%emt 0:00:04]} 11. h3 {[%emt 0:00:37]} Bxf3 {[%emt 0:00:04]} 12. Bxf3 {[%emt 0:00:04]} O-O {[%emt 0:00:06]} 13. g4 {[%emt 0:00:21]} f6 {[%emt 0:00:50]} 14. exf6 {[%emt 0:00:28]} Bxf6 {[%emt 0:00:04] [#]} 15. Bg2 $146 {[%emt 0:00:19]} ({Predecessor:} 15. g5 Bxd4 16. Bxd4 Nxd4 17. Qxd4 Rxf3 18. Qg4 Rf5 19. h4 Nc6 20. Kg2 Qb6 21. Ne2 Raf8 22. f4 e5 23. b3 Qe3 24. Qf3 Qxf3+ 25. Rxf3 d4 26. Raf1 e4 {0-1 (26) Hairetis,I (1682)-Ventura Bolet,M (2250) Heraklion 2016}) 15... b5 {[%emt 0:00:57]} (15... g5 $11) 16. Ne2 {[%emt 0:00:25]} Rc8 {[%emt 0:01:12]} 17. Re1 {[%emt 0:00:19]} Qd7 {[%emt 0:00:57]} 18. a3 {[%emt 0:00:35]} Na5 {[%emt 0:00:37]} 19. b3 {[%emt 0:00:40]} Nec6 {[%emt 0:01:30]} 20. a4 {[%emt 0:00:27]} bxa4 {[%emt 0:00:18]} (20... Rb8 $5 {[%cal Rb5a4]}) 21. Rxa4 {[%emt 0:00:05]} Qb7 $2 {[%emt 0:02:00]} (21... Rb8 $11 {and Black stays safe.}) 22. Nf4 $18 {[%emt 0:01:38]} Rfe8 {[%emt 0:00:41][%mdl 8192] [#]} (22... Qf7 $16) 23. Nxd5 $1 {[%emt 0:00:28][%mdl 512]} exd5 {[%emt 0:00:12]} 24. Bxd5+ {[%emt 0:00:01] A strong pair of Bishops.} Kh8 {[%emt 0:00:18]} 25. Rxa5 {[%emt 0:00:06]} Qd7 {[%emt 0:01:18]} 26. Bxc6 {[%emt 0:01:26]} (26. Rxa6 $2 {is the wrong capture.} Qxd5 27. Bh6 Bxd4 $19) 26... Rxc6 {[%emt 0:00:05]} 27. Qd3 {[%emt 0:00:08]} Qd6 {[%emt 0:00:31]} 28. Rea1 $2 {[%emt 0:00:10]} (28. d5 $18) 28... Ra8 $2 {[%emt 0:00:06][%mdl 8192]} (28... Rxe3 $16 29. Qxe3 Bxd4) 29. d5 {[%emt 0:00:09]} (29. R1a4 $142) 29... Bxa1 {[%emt 0:00:05]} 30. Rxa1 {[%emt 0:00:12] aiming for Bd4+.} Rc7 {[%emt 0:00:04] [#]} 31. Rd1 {[%emt 0:00:09]} (31. Bd4+ $142 $1 Kg8 32. Bb2) 31... Rb7 {[%emt 0:00:05] [#]} (31... Rf7 $16 {is a better defense.}) 32. Qd4+ $2 {[%emt 0:00:14]} ({Better is} 32. Bd4+ $1 $18 Kg8 33. Ba1) 32... Kg8 $11 {[%emt 0:00:02]} 33. Bf4 {[%emt 0:00:22]} Qb6 {[%emt 0:00:02]} 34. Qe5 {[%emt 0:00:09]} Rf8 {[%emt 0:00:13][%cal Ob6f6]} 35. Rd3 {[%emt 0:00:21] Active counter play!} Rd7 $2 {[%emt 0:00:02]} (35... Qf6 $11 36. Qxf6 Rxf6) 36. d6 $16 {[%emt 0:00:06] Threatens to win with Be3. Really sharp!} Qc6 $2 {[%emt 0:00:06]} (36... Rdf7 $16 {is more resistant.} 37. Be3 Qb5) 37. Bh6 $18 {[%emt 0:00:20]} Rc8 {[%emt 0:00:06]} 38. Qe6+ {[%emt 0:00:03]} (38. Bd2 $18 {Intending Bc3 and mate.} h6 39. h4) 38... Kh8 $2 {[%emt 0:00:02][%mdl 8192]} (38... Rf7 $16) 39. Bf4 {[%emt 0:00:32]} Kg7 {[%emt 0:00:07]} 40. Be5+ {[%emt 0:00:08] White mates.} Kh6 {[%emt 0:00:01]} 41. g5+ {[%emt 0:00:05]} Kxg5 {[%emt 0:00:02]} 42. Qg4+ {[%emt 0:00:07]} Kh6 {[%emt 0:00:02]} 43. Qh4# {[%emt 0:00:02] Weighted Error Value: White=0.46/Black=0.77} 1-0